bitfinex/quotes_BTCUSD_20251224
["timestamp","ask_amount","ask_price","bid_price","bid_amount"]
[1766579081763,0.17436,87320.0,87312.0,0.01145317]
[1766579082146,0.17436,87320.0,87311.0,0.08019962]
[1766579083193,0.18581213,87320.0,87311.0,0.02293331]
[1766579084310,0.17436,87320.0,87311.0,0.02293331]
[1766579085176,0.18581213,87320.0,87311.0,0.02293331]
[1766579085379,0.18581213,87320.0,87311.0,0.01145331]
[1766579086242,0.24307366,87319.0,87309.0,0.02293357]
[1766579086439,0.01145239,87318.0,87309.0,0.02293357]
[1766579086730,0.24307366,87319.0,87309.0,0.02293357]
[1766579086938,0.18581226,87319.0,87310.0,0.01145344]
[1766579087157,0.01145239,87318.0,87309.0,0.02293357]
[1766579087788,0.18581239,87318.0,87309.0,0.02293357]
[1766579088288,0.01145252,87317.0,87309.0,0.01148]
[1766579088450,0.18581239,87318.0,87309.0,0.02293357]
[1766579089102,0.01145265,87316.0,87309.0,0.01148]
[1766579089303,0.17436,87315.0,87309.0,0.01148]
[1766579091798,0.17436,87315.0,87310.0,0.0687205]
[1766579092346,0.17436,87315.0,87311.0,0.01145331]
[1766579092747,0.17436,87315.0,87309.0,0.08020134]
[1766579093370,0.17436,87315.0,87309.0,0.01148]
[1766579095712,0.18581278,87315.0,87309.0,0.01148]
[1766579096544,0.24307681,87315.0,87309.0,0.01148]
[1766579097692,0.18581278,87315.0,87309.0,0.01148]
[1766579097903,0.01145291,87314.0,87309.0,0.01148]
[1766579098261,0.24307676,87315.0,87309.0,0.01148]
[1766579098466,0.01145291,87314.0,87309.0,0.01148]
[1766579098669,0.24307676,87315.0,87309.0,0.01148]
[1766579099074,0.01145291,87314.0,87309.0,0.01148]
[1766579099278,0.24307676,87315.0,87309.0,0.01148]
[1766579100645,0.01145291,87314.0,87309.0,0.01148]
[1766579102200,0.01145291,87314.0,87309.0,0.01137941]
[1766579104075,0.01145304,87313.0,87309.0,0.01137941]
[1766579104500,0.24307684,87315.0,87309.0,0.01137941]
[1766579104859,0.01145291,87314.0,87309.0,0.01137941]
[1766579105485,0.01145304,87313.0,87309.0,0.01137941]
[1766579105694,0.19341304,87313.0,87303.0,0.01145436]
[1766579105898,0.18196,87313.0,87305.0,0.01145409]
[1766579106098,0.18196,87313.0,87305.0,0.0687244]
[1766579106278,0.18196,87313.0,87305.0,0.01145409]
[1766579107319,0.18196,87313.0,87305.0,0.06872418]
[1766579107463,0.18196,87313.0,87306.0,0.01145396]
[1766579107868,0.18196,87313.0,87305.0,0.06872418]
[1766579108270,0.18196,87313.0,87306.0,0.01145396]
[1766579108471,0.18196,87313.0,87308.0,0.0114537]
[1766579108709,0.181411,87313.0,87308.0,0.0114537]
[1766579108925,0.181411,87313.0,87306.0,0.01145396]
[1766579109487,0.181411,87313.0,87307.0,0.01145383]
[1766579110063,0.181411,87313.0,87308.0,0.0114537]
[1766579110656,0.181411,87313.0,87308.0,0.06872214]
[1766579111109,0.181411,87313.0,87308.0,0.0114537]
[1766579111984,0.1145738,87319.0,87308.0,0.0114537]
[1766579112188,0.18196,87318.0,87310.0,0.01145344]
[1766579112386,0.18196,87318.0,87311.0,0.05726604]
[1766579112718,0.18196,87318.0,87311.0,0.06871954]
[1766579113303,0.18196,87318.0,87311.0,0.01145331]
[1766579113650,0.19341239,87318.0,87308.0,0.0687217]
[1766579113805,0.01145265,87316.0,87307.0,0.01148]
[1766579114005,0.01145265,87316.0,87307.0,0.010931]
[1766579114006,0.01145317,87312.0,87307.0,0.010931]
[1766579114209,0.01145422,87304.0,87301.0,0.01148]
[1766579114411,0.00055,87301.0,87299.0,0.05727413]
[1766579114664,0.00055,87301.0,87297.0,0.08021067]
[1766579114665,3.821e-05,87301.0,87297.0,0.08021067]
[1766579114869,3.821e-05,87301.0,87300.0,0.05727376]
[1766579115039,0.18196,87307.0,87303.0,0.01145436]
[1766579115243,0.18196,87307.0,87300.0,0.01145475]
[1766579115446,0.18196,87307.0,87300.0,0.06872793]
[1766579115630,0.181449,87307.0,87301.0,0.01145462]
[1766579115841,0.181449,87307.0,87300.0,0.06872793]
[1766579117700,0.000549,87300.0,87299.0,0.01148]
[1766579118126,0.181449,87307.0,87300.0,0.01145475]
[1766579118247,0.181449,87307.0,87299.0,0.06875442]
[1766579118248,0.181449,87307.0,87299.0,0.0802093]
[1766579118475,0.181449,87307.0,87300.0,0.01145475]
[1766579119139,0.181449,87307.0,87299.0,0.08020929]
[1766579119329,0.181449,87307.0,87299.0,0.02293488]
[1766579120981,0.181449,87307.0,87300.0,0.01145475]
[1766579121222,0.181449,87307.0,87299.0,0.08020916]
[1766579121456,0.181449,87307.0,87302.0,0.01145449]
[1766579122776,0.181449,87307.0,87303.0,0.01145436]
[1766579123078,0.180899,87307.0,87304.0,0.01145422]
[1766579123316,0.180899,87307.0,87306.0,0.05726983]
[1766579123750,0.16670892,87307.0,87306.0,0.05726983]
[1766579123976,0.01148,87313.0,87307.0,0.01145383]
[1766579124203,0.18196,87312.0,87309.0,0.0687212]
[1766579124638,0.18196,87312.0,87308.0,0.0114537]
[1766579124904,0.18196,87312.0,87307.0,0.01145383]
[1766579125954,0.00045526,87307.0,87305.0,0.01145409]
[1766579126378,0.18196,87312.0,87308.0,0.0114537]
[1766579128099,0.18196,87312.0,87307.0,0.06872245]
[1766579128251,0.18196,87312.0,87308.0,0.0114537]
[1766579128453,0.18196,87312.0,87307.0,0.01145383]
[1766579128690,0.18196,87312.0,87306.0,0.01145396]
[1766579128894,0.18196,87312.0,87306.0,0.06872371]
[1766579129257,0.18196,87312.0,87306.0,0.01145396]
[1766579130327,0.18196,87312.0,87307.0,0.01145383]
[1766579130744,0.18196,87312.0,87307.0,0.06872286]
[1766579131178,0.18196,87312.0,87307.0,0.01145383]
[1766579131939,0.18196,87312.0,87308.0,0.0114537]
[1766579132456,0.18196,87312.0,87307.0,0.01145383]
[1766579132777,0.18196,87312.0,87308.0,0.0114537]
[1766579133138,0.18196,87312.0,87307.0,0.06872272]
[1766579133746,0.18196,87312.0,87308.0,0.0114537]
[1766579134340,0.18196,87312.0,87308.0,0.06872221]
[1766579134754,0.18196,87312.0,87307.0,0.01145383]
[1766579135418,0.18196,87312.0,87306.0,0.06872324]
[1766579135622,0.18196,87312.0,87308.0,0.0114537]
[1766579136705,0.18196,87312.0,87307.0,0.01145383]
[1766579137348,0.000456,87307.0,87305.0,0.06872427]
[1766579137547,0.000456,87307.0,87304.0,0.06872424]
[1766579137710,0.000456,87307.0,87305.0,0.05727036]
[1766579137912,0.18196,87312.0,87307.0,0.01145383]
[1766579139231,0.18196,87312.0,87306.0,0.06872379]
[1766579141224,0.18196,87312.0,87306.0,0.01145396]
[1766579141459,0.18196,87312.0,87305.0,0.01145409]
[1766579141661,0.18196,87312.0,87306.0,0.01145396]
[1766579142636,0.18196,87312.0,87305.0,0.06872412]
[1766579142838,0.18196,87312.0,87306.0,0.01145396]
[1766579143049,0.18196,87312.0,87305.0,0.06872412]
[1766579144044,0.18196,87312.0,87306.0,0.01145396]
[1766579144840,0.18196,87312.0,87305.0,0.06872412]
[1766579145210,0.18196,87312.0,87306.0,0.01145396]
[1766579145816,0.18196,87312.0,87305.0,0.06872412]
[1766579146065,0.18196,87312.0,87306.0,0.01145396]
[1766579146864,0.18196,87312.0,87305.0,0.06872412]
[1766579147065,0.18196,87312.0,87306.0,0.01145396]
[1766579147244,0.18196,87312.0,87306.0,0.06872375]
[1766579148845,0.01148,87313.0,87294.0,0.034382]
[1766579148846,0.01145436,87303.0,87294.0,0.034382]
[1766579149042,0.16558,87300.0,87293.0,0.00011]
[1766579149393,0.14695284,87300.0,87294.0,0.01145554]
[1766579149603,0.14695284,87300.0,87295.0,0.06873221]
[1766579149807,0.14695284,87300.0,87297.0,0.01145514]
[1766579150008,0.14695284,87300.0,87296.0,0.06873165]
[1766579150224,0.14695284,87300.0,87297.0,0.01145514]
[1766579150426,0.14695284,87300.0,87296.0,0.06873165]
[1766579150427,0.14695284,87300.0,87296.0,0.01145527]
[1766579151169,0.14695284,87300.0,87295.0,0.06873221]
[1766579151597,0.14695284,87300.0,87296.0,0.01145527]
[1766579151986,0.14695284,87300.0,87295.0,0.06873221]
[1766579152847,0.14695284,87300.0,87296.0,0.01145527]
[1766579153974,0.14695284,87300.0,87295.0,0.06873221]
[1766579154175,0.14695284,87300.0,87296.0,0.01145527]
[1766579154388,0.14695284,87300.0,87297.0,0.01145514]
[1766579154713,0.01148,87305.0,87302.0,0.01145449]
[1766579154864,0.01148,87306.0,87300.0,0.01154775]
[1766579155085,0.01148,87306.0,87299.0,0.06872906]
[1766579155293,0.01148,87306.0,87300.0,0.01145475]
[1766579155491,0.01148,87306.0,87301.0,0.01145462]
[1766579155651,0.16558,87311.0,87304.0,0.01145422]
[1766579155859,0.01148,87310.0,87304.0,0.01145422]
[1766579156083,0.01148,87310.0,87303.0,0.06872592]
[1766579156362,0.01148,87310.0,87304.0,0.01145422]
[1766579156501,0.01148,87310.0,87305.0,0.01145409]
[1766579156908,0.01148,87310.0,87305.0,0.0687233]
[1766579157109,0.01148,87310.0,87304.0,0.06872523]
[1766579157390,0.01148,87310.0,87303.0,0.06872609]
[1766579157604,0.01148,87310.0,87303.0,0.01145436]
[1766579158044,0.01148,87310.0,87304.0,0.01145422]
[1766579159087,0.01148,87310.0,87303.0,0.06872564]
[1766579159451,0.01148,87310.0,87304.0,0.01145422]
[1766579159665,0.01148,87310.0,87306.0,0.05726958]
[1766579159831,0.01148,87310.0,87307.0,0.01145383]
[1766579160035,0.000456,87307.0,87306.0,0.06872354]
[1766579160257,0.01148,87310.0,87306.0,0.01145396]
[1766579160624,0.01148,87310.0,87305.0,0.06872412]
[1766579161215,0.01148,87310.0,87305.0,0.06872446]
[1766579161423,0.01148,87310.0,87307.0,0.01145383]
[1766579161641,0.01148,87310.0,87307.0,0.06872245]
[1766579161794,0.01148,87310.0,87308.0,0.05726816]
[1766579162199,0.01148,87310.0,87305.0,0.01145409]
[1766579162200,0.000456,87308.0,87305.0,0.01145409]
[1766579162458,0.01148,87310.0,87306.0,0.01145396]
[1766579162585,0.01148,87310.0,87305.0,0.05727037]
[1766579162788,0.16871,87310.0,87305.0,3.7e-07]
[1766579163417,0.16871,87310.0,87305.0,0.06872483]
[1766579163618,0.16871,87310.0,87306.0,0.01145396]
[1766579165154,0.16871,87310.0,87305.0,3.7e-07]
[1766579165950,0.16871,87310.0,87305.0,0.01145446]
[1766579167476,0.16871,87310.0,87305.0,3.7e-07]
[1766579168592,0.16871,87310.0,87305.0,0.01145446]
[1766579169735,0.16871,87310.0,87305.0,0.06872485]
[1766579170433,0.16871,87310.0,87306.0,0.01145396]
[1766579170601,0.16871,87310.0,87308.0,0.0572683]
[1766579170809,0.16871,87310.0,87309.0,0.05726786]
[1766579171859,0.01148,87314.0,87311.0,0.01145331]
[1766579172318,0.01148,87314.0,87311.0,0.06871941]
[1766579172727,0.01148,87314.0,87311.0,0.01145331]
[1766579172936,0.01148,87314.0,87313.0,0.05726524]
[1766579173149,0.01148,87314.0,87313.0,0.05680924]
[1766579173447,0.15573667,87319.0,87316.0,0.01145265]
[1766579173448,0.0458,87319.0,87316.0,0.01145265]
[1766579173620,0.02485652,87331.0,87324.0,0.0114516]
[1766579173830,0.00011,87331.0,87329.0,0.05725421]
[1766579174038,0.01148,87334.0,87328.0,0.01145108]
[1766579174039,0.01148,87334.0,87333.0,0.05725212]
[1766579174190,0.01148,87334.0,87331.0,0.01188968]
[1766579174395,0.01148,87339.0,87331.0,0.01145068]
[1766579174594,0.01148,87339.0,87330.0,0.01145081]
[1766579174837,0.01148,87339.0,87331.0,0.01145068]
[1766579176156,0.01148,87339.0,87330.0,0.06870487]
[1766579176742,0.00765,87338.0,87330.0,0.01134081]
[1766579176913,0.00765,87338.0,87329.0,0.01145094]
[1766579177115,0.01909976,87338.0,87329.0,0.01145094]
[1766579177721,0.00636,87337.0,87328.0,0.01145108]
[1766579178327,0.00636,87337.0,87327.0,0.01148]
[1766579178529,0.00508,87335.0,87327.0,0.01148]
[1766579178880,0.01653016,87335.0,87327.0,0.01148]
[1766579179219,0.01653029,87334.0,87327.0,0.01148]
[1766579179395,0.00508,87334.0,87327.0,0.01148]
[1766579180182,0.01653029,87334.0,87327.0,0.01148]
[1766579180385,0.0597923,87333.0,87327.0,0.01093]
[1766579180588,0.01399042,87333.0,87327.0,0.01093]
[1766579181599,0.00254,87333.0,87327.0,0.01093]
[1766579182185,0.00254,87333.0,87327.0,0.02238121]
[1766579182407,0.00254,87333.0,87327.0,0.01093]
[1766579183154,0.00254,87333.0,87327.0,0.02238121]
[1766579183490,0.00254,87333.0,87327.0,0.01093]
[1766579183895,0.00254,87333.0,87327.0,0.02238121]
[1766579184117,0.00254,87333.0,87328.0,0.01145108]
[1766579184638,0.00254,87333.0,87327.0,0.01093]
[1766579185583,0.00254,87333.0,87327.0,0.02238121]
[1766579185994,0.00254,87333.0,87327.0,0.0796372]
[1766579186649,0.00254,87333.0,87327.0,0.01093]
[1766579186917,0.00254,87333.0,87327.0,0.07963707]
[1766579187114,0.00254,87333.0,87328.0,0.01145108]
[1766579187434,0.00254,87333.0,87327.0,0.07963707]
[1766579187927,0.00254,87333.0,87327.0,0.01093]
[1766579188267,0.00254,87333.0,87327.0,0.02238121]
[1766579189375,0.00254,87333.0,87327.0,0.01093]
[1766579190097,0.00254,87333.0,87327.0,0.02238121]
[1766579190693,0.00254,87333.0,87327.0,0.01093]
[1766579191242,0.00254,87333.0,87327.0,0.02238121]
[1766579191685,0.00254,87333.0,87327.0,0.01093]
[1766579191799,0.00254,87333.0,87327.0,0.02238121]
[1766579192005,0.00254,87333.0,87327.0,0.01093]
[1766579194195,0.00254,87333.0,87327.0,0.02238121]
[1766579194423,0.00254,87333.0,87327.0,0.01093]
[1766579196174,0.00254,87333.0,87327.0,0.02238121]
[1766579196573,0.00254,87333.0,87327.0,0.07963713]
[1766579196801,0.00254,87333.0,87327.0,0.02238121]
[1766579197006,0.00254,87333.0,87327.0,0.01093]
[1766579197178,0.00254,87333.0,87327.0,0.02238121]
[1766579197384,0.00254,87333.0,87327.0,0.01093]
[1766579200061,0.01399042,87333.0,87327.0,0.01093]
[1766579200468,0.06870335,87332.0,87327.0,0.01093]
[1766579201618,0.01145068,87331.0,87327.0,0.01093]
[1766579202917,0.01145081,87330.0,87327.0,0.01093]
[1766579203448,0.06870536,87331.0,87327.0,0.01093]
[1766579203649,0.01399042,87333.0,87327.0,0.01093]
[1766579203812,0.01145068,87331.0,87327.0,0.01093]
[1766579204421,0.01145081,87330.0,87327.0,0.01093]
[1766579204620,0.06870421,87331.0,87327.0,0.01093]
[1766579205272,0.06870383,87332.0,87327.0,0.01093]
[1766579205494,0.06870417,87331.0,87327.0,0.01093]
[1766579206142,0.01145068,87331.0,87327.0,0.01093]
[1766579206695,0.00254,87333.0,87327.0,0.01093]
[1766579208491,0.00254,87333.0,87327.0,0.02238121]
[1766579208685,0.001991,87333.0,87330.0,0.01145081]
[1766579208868,0.001991,87333.0,87329.0,0.06870524]
[1766579209024,0.001991,87333.0,87328.0,0.01145108]
[1766579209365,0.001991,87333.0,87329.0,0.01145094]
[1766579209639,0.001991,87333.0,87327.0,0.07963668]
[1766579209807,0.001991,87333.0,87328.0,0.01145108]
[1766579210455,0.001991,87333.0,87327.0,0.02238121]
[1766579210655,0.001991,87333.0,87327.0,0.01093]
[1766579210832,0.001991,87333.0,87327.0,0.02238121]
[1766579211055,0.001991,87333.0,87327.0,0.01093]
[1766579211206,0.001991,87333.0,87327.0,0.02238121]
[1766579211425,0.001991,87333.0,87328.0,0.01145108]
[1766579211781,0.001991,87333.0,87327.0,0.07963715]
[1766579212191,0.001991,87333.0,87328.0,0.01145108]
[1766579212364,0.001991,87333.0,87327.0,0.07963715]
[1766579212932,0.001991,87333.0,87328.0,0.01145108]
[1766579213454,0.001991,87333.0,87329.0,0.01145094]
[1766579213621,0.001991,87333.0,87327.0,0.07963715]
[1766579214102,0.001991,87333.0,87327.0,0.02238121]
[1766579214717,0.001991,87333.0,87327.0,0.07963677]
[1766579214902,0.0362004,87338.0,87328.0,0.06870639]
[1766579215107,0.01144976,87338.0,87328.0,0.06870639]
[1766579215510,0.10492964,87339.0,87329.0,0.01145094]
[1766579215747,0.03623064,87339.0,87331.0,0.05725284]
[1766579215957,0.01144898,87344.0,87331.0,0.05725284]
[1766579215958,0.05730232,87343.0,87331.0,0.01145068]
[1766579216196,0.03623064,87343.0,87333.0,0.01145042]
[1766579216399,0.02292911,87343.0,87333.0,0.06870248]
[1766579216600,0.01148,87343.0,87334.0,2.9e-07]
[1766579216804,0.02292911,87343.0,87334.0,2.9e-07]
[1766579217011,0.01148,87343.0,87336.0,0.01145003]
[1766579217211,0.01148,87343.0,87336.0,0.06869966]
[1766579217429,0.01148,87343.0,87336.0,0.01145003]
[1766579217609,0.01148,87343.0,87334.0,0.06870081]
[1766579217782,0.01148,87343.0,87335.0,0.01145016]
[1766579217984,0.01148,87343.0,87336.0,0.01145003]
[1766579218144,0.01148,87343.0,87337.0,0.0572495]
[1766579218370,0.01148,87343.0,87339.0,0.05724819]
[1766579218571,0.01148,87343.0,87340.0,0.0114495]
[1766579218771,0.01148,87347.0,87340.0,0.06869691]
[1766579219186,0.01148,87347.0,87341.0,0.0572464]
[1766579219397,0.01148,87347.0,87342.0,0.06869545]
[1766579219607,0.01148,87347.0,87342.0,0.01144924]
[1766579220399,0.01148,87347.0,87341.0,0.01144937]
[1766579220892,0.01148,87347.0,87340.0,0.06869701]
[1766579221320,0.01148,87347.0,87341.0,0.01144937]
[1766579221525,0.01148,87347.0,87340.0,0.06869701]
[1766579221719,0.01148,87347.0,87341.0,0.01144937]
[1766579222016,0.01148,87347.0,87341.0,0.06869613]
[1766579222240,0.01148,87347.0,87341.0,0.01144937]
[1766579222412,0.01148,87347.0,87340.0,0.0114495]
[1766579223215,0.01148,87347.0,87340.0,0.06869678]
[1766579224153,0.01148,87347.0,87337.0,0.08017938]
[1766579224350,0.01148,87347.0,87338.0,0.01144976]
[1766579224512,0.01148,87347.0,87340.0,0.05724748]
[1766579224762,0.36388503,87350.0,87343.0,0.01144911]
[1766579224961,0.01159,87350.0,87344.0,0.01144898]
[1766579225167,0.03437002,87351.0,87348.0,0.06869074]
[1766579225370,0.09339385,87359.0,87347.0,0.01144859]
[1766579225371,0.01148,87356.0,87347.0,0.01144859]
[1766579225569,0.01183652,87356.0,87347.0,0.01144859]
[1766579225969,0.01144754,87355.0,87345.0,0.06872418]
[1766579226169,0.02328393,87356.0,87346.0,0.06869221]
[1766579226937,0.02328393,87356.0,87347.0,0.01144859]
[1766579227052,0.08052101,87356.0,87346.0,0.01144872]
[1766579227250,0.24040183,87354.0,87345.0,0.01148]
[1766579227472,0.01144819,87350.0,87339.0,0.01144963]
[1766579227677,0.06868921,87350.0,87340.0,0.0229295]
[1766579227880,0.01144832,87349.0,87340.0,0.01148]
[1766579228105,0.01144819,87350.0,87340.0,0.0229295]
[1766579228411,0.01144819,87350.0,87340.0,0.08017698]
[1766579228686,0.06868863,87351.0,87340.0,0.08017698]
[1766579228895,0.06869046,87349.0,87340.0,0.01148]
[1766579229075,0.06869009,87349.0,87340.0,0.01148]
[1766579229475,0.05724234,87348.0,87340.0,0.01148]
[1766579229677,0.06869079,87348.0,87340.0,0.01148]
[1766579230021,0.06868957,87350.0,87340.0,0.08017693]
[1766579230223,0.06868846,87351.0,87341.0,0.01144937]
[1766579230451,0.01144819,87350.0,87340.0,0.0229295]
[1766579230630,0.01144819,87350.0,87341.0,0.01144937]
[1766579230827,0.01144845,87348.0,87340.0,0.01148]
[1766579231024,0.01144832,87349.0,87340.0,0.0229295]
[1766579231226,0.06868925,87350.0,87340.0,0.0229295]
[1766579231451,0.06868925,87350.0,87341.0,0.01144937]
[1766579231663,0.06868925,87350.0,87340.0,0.0229295]
[1766579232094,0.06868925,87350.0,87340.0,0.02175275]
[1766579232331,0.01144819,87350.0,87341.0,0.01144937]
[1766579232539,0.01144819,87350.0,87340.0,0.02175275]
[1766579232756,0.01144819,87350.0,87341.0,0.01144937]
[1766579232963,0.06868904,87351.0,87341.0,0.01144937]
[1766579233256,0.00055,87341.0,87340.0,0.01148]
[1766579233439,0.00055,87341.0,87336.0,0.01148]
[1766579233599,0.01144911,87343.0,87335.0,0.01148]
[1766579234168,0.01144885,87345.0,87335.0,0.02293016]
[1766579234364,0.01144898,87344.0,87335.0,0.02293016]
[1766579234606,0.01144898,87344.0,87335.0,0.01148]
[1766579234818,0.01144885,87345.0,87335.0,0.02293016]
[1766579235496,0.01144898,87344.0,87335.0,0.01148]
[1766579235743,0.01144911,87343.0,87335.0,0.01148]
[1766579236348,0.06869404,87344.0,87335.0,0.01045063]
[1766579237048,0.01144898,87344.0,87335.0,0.01045063]
[1766579237245,0.08017318,87345.0,87335.0,0.02190079]
[1766579237901,0.01144898,87344.0,87335.0,0.01045063]
[1766579238242,0.01144898,87344.0,87335.0,0.02190079]
[1766579238870,0.01144898,87344.0,87335.0,0.01045063]
[1766579239033,0.08017316,87345.0,87335.0,0.01045063]
[1766579239236,0.06869424,87344.0,87335.0,0.01045063]
[1766579239761,0.06869424,87344.0,87335.0,0.02190079]
[1766579239762,0.01144898,87344.0,87335.0,0.02190079]
[1766579239996,0.01148,87345.0,87336.0,0.01145003]
[1766579240211,0.01148,87345.0,87338.0,0.01144976]
[1766579240417,0.01144898,87344.0,87335.0,0.01045063]
[1766579240653,0.08017363,87345.0,87335.0,0.02190079]
[1766579240858,0.02292885,87345.0,87335.0,0.07915151]
[1766579241060,0.08017318,87345.0,87335.0,0.07915151]
[1766579241794,0.01144898,87344.0,87335.0,0.07915151]
[1766579241976,0.01148,87345.0,87336.0,0.01145003]
[1766579242209,0.01148,87345.0,87338.0,0.01144976]
[1766579242413,0.01148,87345.0,87337.0,0.0686994]
[1766579242599,0.01148,87345.0,87338.0,0.01144976]
[1766579243827,0.01148,87345.0,87338.0,0.06869853]
[1766579244259,0.01148,87345.0,87337.0,0.0114499]
[1766579244983,0.01148,87345.0,87338.0,0.01144976]
[1766579245190,0.01148,87345.0,87337.0,0.06869923]
[1766579245592,0.01148,87345.0,87337.0,0.0114499]
[1766579245790,0.01148,87345.0,87340.0,0.0114495]
[1766579246031,0.01148,87345.0,87341.0,0.01144937]
[1766579246204,0.01148,87345.0,87340.0,0.0114495]
[1766579246436,0.01148,87345.0,87342.0,0.01144924]
[1766579246630,0.01148,87345.0,87341.0,0.01144937]
[1766579246828,0.010931,87345.0,87342.0,0.011185]
[1766579247029,0.010931,87345.0,87342.0,0.06843064]
[1766579247378,0.0114478,87353.0,87343.0,0.01144911]
[1766579247653,0.01148,87350.0,87342.0,0.06869546]
[1766579247858,0.01148,87350.0,87341.0,0.06869612]
[1766579248058,0.01144845,87348.0,87340.0,0.14556]
[1766579248261,0.01144845,87348.0,87339.0,0.01148]
[1766579248471,0.06869095,87348.0,87339.0,0.01148]
[1766579248694,0.01144859,87347.0,87339.0,0.01148]
[1766579249074,0.06869177,87347.0,87339.0,0.01148]
[1766579249292,0.01144872,87346.0,87339.0,0.01148]
[1766579249710,0.05724406,87346.0,87339.0,0.01148]
[1766579249930,0.001099,87339.0,87329.0,0.05725363]
[1766579250182,0.001099,87339.0,87330.0,0.01148]
[1766579250364,0.37533453,87340.0,87330.0,0.01148]
[1766579250648,0.01144963,87339.0,87330.0,0.02293081]
[1766579250849,0.06869783,87339.0,87330.0,0.01148]
[1766579251060,0.01144963,87339.0,87330.0,0.01148]
[1766579251680,0.01144963,87339.0,87330.0,0.02293081]
[1766579251875,0.00011,87340.0,87332.0,0.06870293]
[1766579252117,0.00011,87340.0,87333.0,0.01145042]
[1766579252318,0.00011,87340.0,87332.0,0.02293055]
[1766579252482,0.00011,87340.0,87332.0,0.01148]
[1766579254058,0.0115595,87340.0,87332.0,0.01148]
[1766579254263,0.0115595,87340.0,87331.0,0.01145068]
[1766579254467,0.0115595,87340.0,87332.0,0.01148]
[1766579254683,0.06880717,87340.0,87332.0,0.01148]
[1766579255042,0.06880717,87340.0,87330.0,0.06870481]
[1766579255241,0.0115595,87340.0,87332.0,0.01148]
[1766579255444,0.00011,87340.0,87332.0,0.01148]
[1766579255651,0.00011,87340.0,87332.0,0.02293055]
[1766579255886,0.00011,87340.0,87332.0,0.16404055]
[1766579256090,0.00011,87340.0,87334.0,0.01145029]
[1766579256904,0.00011,87340.0,87334.0,0.06870123]
[1766579257985,0.00011,87340.0,87335.0,0.01145016]
[1766579258335,0.00011,87340.0,87333.0,0.08018244]
[1766579258529,0.00011,87340.0,87334.0,0.01145029]
[1766579258849,0.00011,87340.0,87335.0,0.01145016]
[1766579259256,0.00011,87340.0,87336.0,0.01145003]
[1766579259457,0.00011,87340.0,87335.0,0.06870082]
[1766579259808,0.00011,87340.0,87336.0,0.01145003]
[1766579260008,0.01148,87345.0,87337.0,0.06869884]
[1766579260170,0.01148,87345.0,87339.0,0.01144963]
[1766579260507,0.01148,87345.0,87340.0,0.0114495]
[1766579261901,0.01148,87345.0,87339.0,0.06869733]
[1766579262098,0.01148,87345.0,87339.0,0.01144963]
[1766579262299,0.01148,87345.0,87338.0,0.01144976]
[1766579262523,0.01148,87345.0,87339.0,0.01144963]
[1766579262742,0.01148,87345.0,87338.0,0.01144976]
[1766579263152,0.01148,87345.0,87339.0,0.01144963]
[1766579263664,0.01148,87345.0,87338.0,0.06869828]
[1766579264079,0.01148,87345.0,87339.0,0.01144963]
[1766579264857,0.01148,87345.0,87340.0,0.0114495]
[1766579265930,0.01148,87345.0,87340.0,0.06869676]
[1766579266146,0.01148,87345.0,87339.0,0.06869737]
[1766579266350,0.01148,87345.0,87339.0,0.01144963]
[1766579266973,0.01148,87345.0,87340.0,0.1402295]
[1766579267173,0.00060808,87345.0,87342.0,0.01144924]
[1766579267521,0.03436896,87352.0,87343.0,0.01144911]
[1766579267664,0.01148,87349.0,87345.0,0.01144885]
[1766579267873,0.01148,87349.0,87344.0,0.06869337]
[1766579268270,0.01148,87349.0,87344.0,0.01144898]
[1766579268474,0.01148,87349.0,87344.0,0.0686938]
[1766579268880,0.01148,87349.0,87343.0,0.19747417]
[1766579270028,0.01148,87349.0,87343.0,0.14022911]
[1766579270209,0.01148,87349.0,87343.0,0.12878]
[1766579270819,0.00648,87349.0,87343.0,0.12878]
[1766579271608,0.00648,87349.0,87343.0,0.14022911]
[1766579271783,0.00648,87349.0,87343.0,0.12878]
[1766579272177,0.00648,87349.0,87343.0,0.19747447]
[1766579272528,0.00648,87349.0,87344.0,0.01144898]
[1766579273369,0.00648,87349.0,87345.0,0.01144885]
[1766579273529,0.00648,87349.0,87346.0,0.01144872]
[1766579273695,0.00648,87349.0,87345.0,0.06869308]
[1766579274214,0.00648,87349.0,87343.0,0.06869435]
[1766579274415,0.00648,87349.0,87342.0,0.01144924]
[1766579274649,0.00648,87349.0,87341.0,0.08017512]
[1766579274830,0.00648,87349.0,87342.0,0.06869542]
[1766579275227,0.00648,87349.0,87343.0,0.01144911]
[1766579275624,0.00648,87349.0,87342.0,0.06869542]
[1766579275863,0.00648,87349.0,87343.0,0.01144911]
[1766579276409,0.00648,87349.0,87342.0,0.01144924]
[1766579276621,0.00648,87349.0,87345.0,0.01144885]
[1766579276826,0.00648,87349.0,87346.0,0.01144872]
[1766579277029,0.00648,87349.0,87343.0,0.06869434]
[1766579278353,0.00648,87349.0,87344.0,0.01144898]
[1766579278759,0.00648,87349.0,87345.0,0.01144885]
[1766579279699,0.00648,87349.0,87345.0,0.06869305]
[1766579279922,0.00648,87349.0,87344.0,0.06869388]
[1766579280305,0.00648,87349.0,87344.0,0.01144898]
[1766579280510,0.00648,87349.0,87345.0,0.01144885]
[1766579280746,0.00648,87349.0,87344.0,0.06869383]
[1766579280957,0.00648,87349.0,87345.0,0.01144885]
[1766579281156,0.00648,87349.0,87341.0,0.01148]
[1766579281358,0.000549,87345.0,87341.0,0.02292937]
[1766579281632,0.000549,87345.0,87341.0,0.01148]
[1766579281805,0.000549,87345.0,87336.0,0.24044847]
[1766579281806,0.00055,87341.0,87334.0,0.01145029]
[1766579282183,0.00055,87341.0,87334.0,0.02293029]
[1766579282362,0.01144911,87343.0,87334.0,0.01148]
[1766579282564,0.10993667,87344.0,87336.0,0.01145003]
[1766579282780,0.10993667,87344.0,87338.0,0.01144976]
[1766579283220,0.10993667,87344.0,87339.0,0.01144963]
[1766579283364,0.10993667,87344.0,87339.0,0.0686978]
[1766579283567,0.10993667,87344.0,87340.0,0.0114495]
[1766579283810,0.10993667,87344.0,87341.0,0.01144937]
[1766579284169,0.10993667,87344.0,87340.0,0.0114495]
[1766579284504,0.10993667,87344.0,87341.0,0.01144937]
[1766579284712,0.000549,87341.0,87338.0,0.01144976]
[1766579284886,0.10993667,87344.0,87338.0,0.01144976]
[1766579284887,0.10993667,87344.0,87339.0,0.01144963]
[1766579285478,0.10993667,87344.0,87340.0,0.0114495]